{"text_format":"3","workbook":"xlsx","n_sheets":13,"sheets":["Siječanj","Veljača","Ožujak","Travanj","Svibanj","Lipanj","Srpanj","Kolovoz","Rujan","Listopad","Studeni","Prosinac","Sažetak dosadašnje godine"],"not_rendered":{"charts":1,"defined_names":13},"read":"whole","date_system":"1900"}

{"sheet":"Siječanj","index":0,"n_rows":9,"n_cols":14,"rows_kept":9,"merged":[[3,0,4,0],[6,0,7,0]]}
["SIJEČANJ"]
["Internetska prodaja",null,"ID\ndražbe","Opis\nartikla","Nabavna\ncijena","Prodajna cijena","Online fees","Naknade za\nPayPal","Naknade za\nkreditnu karticu","Naplata\nisporuke","Naknade za\nisporuku","Dobit/gubitak\nod prodaje","Dobit/gubitak\nod isporuke","Ukupna\ndobit/gubitak"]
["Godina",null,"TS001","Artikl 1",{"v":5,"d":"5.00 kn"},{"v":4,"d":"4.00 kn"},{"v":2,"d":"2.00 kn"},{"v":1.5,"d":"1.50 kn"},{"v":0,"d":"0.00 kn"},{"v":4,"d":"4.00 kn"},{"v":2,"d":"2.00 kn"},{"$f":"IFERROR(ProdajaSiječanj[Prodajna cijena]-(ProdajaSiječanj[Nabavna\ncijena]+ProdajaSiječanj[Online fees]+ProdajaSiječanj[Naknade za\nPayPal]+ProdajaSiječanj[Naknade za\nkreditnu karticu]),\"\")","v":{"v":-4.5,"d":"-4.50 kn"}},{"$f":"ProdajaSiječanj[Naplata\nisporuke]-ProdajaSiječanj[Naknade za\nisporuku]","v":{"v":2,"d":"2.00 kn"}},{"$f":"ProdajaSiječanj[Dobit/gubitak\nod prodaje]+ProdajaSiječanj[Dobit/gubitak\nod isporuke]","v":{"v":-2.5,"d":"-2.50 kn"}}]
[2012,null,"TP004","Artikl 2",{"v":2,"d":"2.00 kn"},{"v":30,"d":"30.00 kn"},{"v":0.5,"d":"0.50 kn"},{"v":0.5,"d":"0.50 kn"},null,{"v":4,"d":"4.00 kn"},{"v":5.5,"d":"5.50 kn"},{"$f":"IFERROR(ProdajaSiječanj[Prodajna cijena]-(ProdajaSiječanj[Nabavna\ncijena]+ProdajaSiječanj[Online fees]+ProdajaSiječanj[Naknade za\nPayPal]+ProdajaSiječanj[Naknade za\nkreditnu karticu]),\"\")","v":{"v":27,"d":"27.00 kn"}},{"$f":"ProdajaSiječanj[Naplata\nisporuke]-ProdajaSiječanj[Naknade za\nisporuku]","v":{"v":-1.5,"d":"-1.50 kn"}},{"$f":"ProdajaSiječanj[Dobit/gubitak\nod prodaje]+ProdajaSiječanj[Dobit/gubitak\nod isporuke]","v":{"v":25.5,"d":"25.50 kn"}}]
[null,null,"RS99","Artikl 3",{"v":17,"d":"17.00 kn"},{"v":23,"d":"23.00 kn"},{"v":2,"d":"2.00 kn"},null,{"v":2,"d":"2.00 kn"},{"v":3,"d":"3.00 kn"},{"v":2,"d":"2.00 kn"},{"$f":"IFERROR(ProdajaSiječanj[Prodajna cijena]-(ProdajaSiječanj[Nabavna\ncijena]+ProdajaSiječanj[Online fees]+ProdajaSiječanj[Naknade za\nPayPal]+ProdajaSiječanj[Naknade za\nkreditnu karticu]),\"\")","v":{"v":2,"d":"2.00 kn"}},{"$f":"ProdajaSiječanj[Naplata\nisporuke]-ProdajaSiječanj[Naknade za\nisporuku]","v":{"v":1,"d":"1.00 kn"}},{"$f":"ProdajaSiječanj[Dobit/gubitak\nod prodaje]+ProdajaSiječanj[Dobit/gubitak\nod isporuke]","v":{"v":3,"d":"3.00 kn"}}]
["Ukupna dobit/gubitak",null,"ST001","Artikl 4",{"v":120,"d":"120.00 kn"},{"v":180,"d":"180.00 kn"},{"v":2,"d":"2.00 kn"},{"v":1.5,"d":"1.50 kn"},null,{"v":3,"d":"3.00 kn"},{"v":2,"d":"2.00 kn"},{"$f":"IFERROR(ProdajaSiječanj[Prodajna cijena]-(ProdajaSiječanj[Nabavna\ncijena]+ProdajaSiječanj[Online fees]+ProdajaSiječanj[Naknade za\nPayPal]+ProdajaSiječanj[Naknade za\nkreditnu karticu]),\"\")","v":{"v":56.5,"d":"56.50 kn"}},{"$f":"ProdajaSiječanj[Naplata\nisporuke]-ProdajaSiječanj[Naknade za\nisporuku]","v":{"v":1,"d":"1.00 kn"}},{"$f":"ProdajaSiječanj[Dobit/gubitak\nod prodaje]+ProdajaSiječanj[Dobit/gubitak\nod isporuke]","v":{"v":57.5,"d":"57.50 kn"}}]
[{"$f":"ProdajaSiječanj[[#Totals],[Ukupna\ndobit/gubitak]]","v":{"v":89,"d":"89.00 kn"}},null,"ST001","Artikl 5",{"v":10,"d":"10.00 kn"},{"v":12,"d":"12.00 kn"},{"v":2,"d":"2.00 kn"},{"v":1.5,"d":"1.50 kn"},null,{"v":14,"d":"14.00 kn"},{"v":7,"d":"7.00 kn"},{"$f":"IFERROR(ProdajaSiječanj[Prodajna cijena]-(ProdajaSiječanj[Nabavna\ncijena]+ProdajaSiječanj[Online fees]+ProdajaSiječanj[Naknade za\nPayPal]+ProdajaSiječanj[Naknade za\nkreditnu karticu]),\"\")","v":{"v":-1.5,"d":"-1.50 kn"}},{"$f":"ProdajaSiječanj[Naplata\nisporuke]-ProdajaSiječanj[Naknade za\nisporuku]","v":{"v":7,"d":"7.00 kn"}},{"$f":"ProdajaSiječanj[Dobit/gubitak\nod prodaje]+ProdajaSiječanj[Dobit/gubitak\nod isporuke]","v":{"v":5.5,"d":"5.50 kn"}}]
[null,null,"Ukupno",{"$f":"\"Prodani artikli: \"&SUBTOTAL(103,ProdajaSiječanj[Opis\nartikla])","v":"Prodani artikli: 5"},{"$f":"SUBTOTAL(109,ProdajaSiječanj[Nabavna\ncijena])","v":{"v":154,"d":"154.00 kn"}},{"$f":"SUBTOTAL(109,ProdajaSiječanj[Prodajna cijena])","v":{"v":249,"d":"249.00 kn"}},{"$f":"SUBTOTAL(109,ProdajaSiječanj[Online fees])","v":{"v":8.5,"d":"8.50 kn"}},{"$f":"SUBTOTAL(109,ProdajaSiječanj[Naknade za\nPayPal])","v":{"v":5,"d":"5.00 kn"}},{"$f":"SUBTOTAL(109,ProdajaSiječanj[Naknade za\nkreditnu karticu])","v":{"v":2,"d":"2.00 kn"}},{"$f":"SUBTOTAL(109,ProdajaSiječanj[Naplata\nisporuke])","v":{"v":28,"d":"28.00 kn"}},{"$f":"SUBTOTAL(109,ProdajaSiječanj[Naknade za\nisporuku])","v":{"v":18.5,"d":"18.50 kn"}},{"$f":"SUBTOTAL(109,ProdajaSiječanj[Dobit/gubitak\nod prodaje])","v":{"v":79.5,"d":"79.50 kn"}},{"$f":"SUBTOTAL(109,ProdajaSiječanj[Dobit/gubitak\nod isporuke])","v":{"v":9.5,"d":"9.50 kn"}},{"$f":"SUBTOTAL(109,ProdajaSiječanj[Ukupna\ndobit/gubitak])","v":{"v":89,"d":"89.00 kn"}}]
["Trend dobiti/gubitka"]

{"sheet":"Veljača","index":1,"n_rows":9,"n_cols":14,"rows_kept":9,"merged":[[3,0,4,0],[6,0,7,0]]}
["VELJAČA"]
["Internetska prodaja",null,"ID\ndražbe","Opis\nartikla","Nabavna\ncijena","Prodajna cijena","Online fees","Naknade za\nPayPal","Naknade za\nkreditnu karticu","Naplata\nisporuke","Naknade za\nisporuku","Dobit/gubitak\nod prodaje","Dobit/gubitak\nod isporuke","Ukupna\ndobit/gubitak"]
["Godina",null,"TS020","Artikl 1",{"v":10,"d":"10.00 kn"},{"v":175,"d":"175.00 kn"},{"v":3,"d":"3.00 kn"},{"v":1.5,"d":"1.50 kn"},{"v":0,"d":"0.00 kn"},{"v":7,"d":"7.00 kn"},{"v":5,"d":"5.00 kn"},{"$f":"IFERROR(ProdajaVeljača[Prodajna cijena]-(ProdajaVeljača[Nabavna\ncijena]+ProdajaVeljača[Online fees]+ProdajaVeljača[Naknade za\nPayPal]+ProdajaVeljača[Naknade za\nkreditnu karticu]),\"\")","v":{"v":160.5,"d":"160.50 kn"}},{"$f":"ProdajaVeljača[Naplata\nisporuke]-ProdajaVeljača[Naknade za\nisporuku]","v":{"v":2,"d":"2.00 kn"}},{"$f":"ProdajaVeljača[Dobit/gubitak\nod prodaje]+ProdajaVeljača[Dobit/gubitak\nod isporuke]","v":{"v":162.5,"d":"162.50 kn"}}]
[{"$f":"GodišnjaProdaja","v":2012},null,"TS021","Artikl 2",{"v":32,"d":"32.00 kn"},{"v":100,"d":"100.00 kn"},{"v":3,"d":"3.00 kn"},null,{"v":3.2,"d":"3.20 kn"},{"v":20,"d":"20.00 kn"},{"v":13,"d":"13.00 kn"},{"$f":"IFERROR(ProdajaVeljača[Prodajna cijena]-(ProdajaVeljača[Nabavna\ncijena]+ProdajaVeljača[Online fees]+ProdajaVeljača[Naknade za\nPayPal]+ProdajaVeljača[Naknade za\nkreditnu karticu]),\"\")","v":{"v":61.8,"d":"61.80 kn"}},{"$f":"ProdajaVeljača[Naplata\nisporuke]-ProdajaVeljača[Naknade za\nisporuku]","v":{"v":7,"d":"7.00 kn"}},{"$f":"ProdajaVeljača[Dobit/gubitak\nod prodaje]+ProdajaVeljača[Dobit/gubitak\nod isporuke]","v":{"v":68.8,"d":"68.80 kn"}}]
[null,null,"TS022","Artikl 3",{"v":3,"d":"3.00 kn"},{"v":7,"d":"7.00 kn"},{"v":2,"d":"2.00 kn"},null,{"v":2,"d":"2.00 kn"},{"v":0.5,"d":"0.50 kn"},{"v":1.2,"d":"1.20 kn"},{"$f":"IFERROR(ProdajaVeljača[Prodajna cijena]-(ProdajaVeljača[Nabavna\ncijena]+ProdajaVeljača[Online fees]+ProdajaVeljača[Naknade za\nPayPal]+ProdajaVeljača[Naknade za\nkreditnu karticu]),\"\")","v":{"v":0,"d":"0.00 kn"}},{"$f":"ProdajaVeljača[Naplata\nisporuke]-ProdajaVeljača[Naknade za\nisporuku]","v":{"v":-0.7,"d":"-0.70 kn"}},{"$f":"ProdajaVeljača[Dobit/gubitak\nod prodaje]+ProdajaVeljača[Dobit/gubitak\nod isporuke]","v":{"v":-0.7,"d":"-0.70 kn"}}]
["Ukupna dobit/gubitak",null,"TS023","Artikl 4",{"v":22,"d":"22.00 kn"},{"v":18,"d":"18.00 kn"},{"v":3,"d":"3.00 kn"},{"v":1.5,"d":"1.50 kn"},null,{"v":7,"d":"7.00 kn"},{"v":10,"d":"10.00 kn"},{"$f":"IFERROR(ProdajaVeljača[Prodajna cijena]-(ProdajaVeljača[Nabavna\ncijena]+ProdajaVeljača[Online fees]+ProdajaVeljača[Naknade za\nPayPal]+ProdajaVeljača[Naknade za\nkreditnu karticu]),\"\")","v":{"v":-8.5,"d":"-8.50 kn"}},{"$f":"ProdajaVeljača[Naplata\nisporuke]-ProdajaVeljača[Naknade za\nisporuku]","v":{"v":-3,"d":"-3.00 kn"}},{"$f":"ProdajaVeljača[Dobit/gubitak\nod prodaje]+ProdajaVeljača[Dobit/gubitak\nod isporuke]","v":{"v":-11.5,"d":"-11.50 kn"}}]
[{"$f":"ProdajaVeljača[[#Totals],[Ukupna\ndobit/gubitak]]","v":{"v":224.60000000000002,"d":"224.60 kn"}},null,"TS024","Artikl 5",{"v":10,"d":"10.00 kn"},{"v":12,"d":"12.00 kn"},{"v":2,"d":"2.00 kn"},{"v":1.5,"d":"1.50 kn"},null,{"v":14,"d":"14.00 kn"},{"v":7,"d":"7.00 kn"},{"$f":"IFERROR(ProdajaVeljača[Prodajna cijena]-(ProdajaVeljača[Nabavna\ncijena]+ProdajaVeljača[Online fees]+ProdajaVeljača[Naknade za\nPayPal]+ProdajaVeljača[Naknade za\nkreditnu karticu]),\"\")","v":{"v":-1.5,"d":"-1.50 kn"}},{"$f":"ProdajaVeljača[Naplata\nisporuke]-ProdajaVeljača[Naknade za\nisporuku]","v":{"v":7,"d":"7.00 kn"}},{"$f":"ProdajaVeljača[Dobit/gubitak\nod prodaje]+ProdajaVeljača[Dobit/gubitak\nod isporuke]","v":{"v":5.5,"d":"5.50 kn"}}]
[null,null,"Ukupno",{"$f":"\"Prodani artikli: \"&SUBTOTAL(103,ProdajaVeljača[Opis\nartikla])","v":"Prodani artikli: 5"},{"$f":"SUBTOTAL(109,ProdajaVeljača[Nabavna\ncijena])","v":{"v":77,"d":"77.00 kn"}},{"$f":"SUBTOTAL(109,ProdajaVeljača[Prodajna cijena])","v":{"v":312,"d":"312.00 kn"}},{"$f":"SUBTOTAL(109,ProdajaVeljača[Online fees])","v":{"v":13,"d":"13.00 kn"}},{"$f":"SUBTOTAL(109,ProdajaVeljača[Naknade za\nPayPal])","v":{"v":4.5,"d":"4.50 kn"}},{"$f":"SUBTOTAL(109,ProdajaVeljača[Naknade za\nkreditnu karticu])","v":{"v":5.2,"d":"5.20 kn"}},{"$f":"SUBTOTAL(109,ProdajaVeljača[Naplata\nisporuke])","v":{"v":48.5,"d":"48.50 kn"}},{"$f":"SUBTOTAL(109,ProdajaVeljača[Naknade za\nisporuku])","v":{"v":36.2,"d":"36.20 kn"}},{"$f":"SUBTOTAL(109,ProdajaVeljača[Dobit/gubitak\nod prodaje])","v":{"v":212.3,"d":"212.30 kn"}},{"$f":"SUBTOTAL(109,ProdajaVeljača[Dobit/gubitak\nod isporuke])","v":{"v":12.3,"d":"12.30 kn"}},{"$f":"SUBTOTAL(109,ProdajaVeljača[Ukupna\ndobit/gubitak])","v":{"v":224.60000000000002,"d":"224.60 kn"}}]
["Trend dobiti/gubitka"]

{"sheet":"Ožujak","index":2,"n_rows":9,"n_cols":14,"rows_kept":9,"merged":[[3,0,4,0],[6,0,7,0]]}
["OŽUJAK"]
["Internetska prodaja",null,"ID\ndražbe","Opis\nartikla","Nabavna\ncijena","Prodajna cijena","Online fees","Naknade za\nPayPal","Naknade za\nkreditnu karticu","Naplata\nisporuke","Naknade za\nisporuku","Dobit/gubitak\nod prodaje","Dobit/gubitak\nod isporuke","Ukupna\ndobit/gubitak"]
["Godina",{"$nulls":10},{"$f":"IFERROR(ProdajaOžujak[Prodajna cijena]-(ProdajaOžujak[Nabavna\ncijena]+ProdajaOžujak[Online fees]+ProdajaOžujak[Naknade za\nPayPal]+ProdajaOžujak[Naknade za\nkreditnu karticu]),\"\")","v":{"v":0,"d":"0.00 kn"}},{"$f":"ProdajaOžujak[Naplata\nisporuke]-ProdajaOžujak[Naknade za\nisporuku]","v":{"v":0,"d":"0.00 kn"}},{"$f":"ProdajaOžujak[Dobit/gubitak\nod prodaje]+ProdajaOžujak[Dobit/gubitak\nod isporuke]","v":{"v":0,"d":"0.00 kn"}}]
[{"$f":"GodišnjaProdaja","v":2012},{"$nulls":10},{"$f":"IFERROR(ProdajaOžujak[Prodajna cijena]-(ProdajaOžujak[Nabavna\ncijena]+ProdajaOžujak[Online fees]+ProdajaOžujak[Naknade za\nPayPal]+ProdajaOžujak[Naknade za\nkreditnu karticu]),\"\")","v":{"v":0,"d":"0.00 kn"}},{"$f":"ProdajaOžujak[Naplata\nisporuke]-ProdajaOžujak[Naknade za\nisporuku]","v":{"v":0,"d":"0.00 kn"}},{"$f":"ProdajaOžujak[Dobit/gubitak\nod prodaje]+ProdajaOžujak[Dobit/gubitak\nod isporuke]","v":{"v":0,"d":"0.00 kn"}}]
[{"$nulls":11},{"$f":"IFERROR(ProdajaOžujak[Prodajna cijena]-(ProdajaOžujak[Nabavna\ncijena]+ProdajaOžujak[Online fees]+ProdajaOžujak[Naknade za\nPayPal]+ProdajaOžujak[Naknade za\nkreditnu karticu]),\"\")","v":{"v":0,"d":"0.00 kn"}},{"$f":"ProdajaOžujak[Naplata\nisporuke]-ProdajaOžujak[Naknade za\nisporuku]","v":{"v":0,"d":"0.00 kn"}},{"$f":"ProdajaOžujak[Dobit/gubitak\nod prodaje]+ProdajaOžujak[Dobit/gubitak\nod isporuke]","v":{"v":0,"d":"0.00 kn"}}]
["Ukupna dobit/gubitak",{"$nulls":10},{"$f":"IFERROR(ProdajaOžujak[Prodajna cijena]-(ProdajaOžujak[Nabavna\ncijena]+ProdajaOžujak[Online fees]+ProdajaOžujak[Naknade za\nPayPal]+ProdajaOžujak[Naknade za\nkreditnu karticu]),\"\")","v":{"v":0,"d":"0.00 kn"}},{"$f":"ProdajaOžujak[Naplata\nisporuke]-ProdajaOžujak[Naknade za\nisporuku]","v":{"v":0,"d":"0.00 kn"}},{"$f":"ProdajaOžujak[Dobit/gubitak\nod prodaje]+ProdajaOžujak[Dobit/gubitak\nod isporuke]","v":{"v":0,"d":"0.00 kn"}}]
[{"$f":"ProdajaOžujak[[#Totals],[Ukupna\ndobit/gubitak]]","v":{"v":0,"d":"0.00 kn"}},{"$nulls":10},{"$f":"IFERROR(ProdajaOžujak[Prodajna cijena]-(ProdajaOžujak[Nabavna\ncijena]+ProdajaOžujak[Online fees]+ProdajaOžujak[Naknade za\nPayPal]+ProdajaOžujak[Naknade za\nkreditnu karticu]),\"\")","v":{"v":0,"d":"0.00 kn"}},{"$f":"ProdajaOžujak[Naplata\nisporuke]-ProdajaOžujak[Naknade za\nisporuku]","v":{"v":0,"d":"0.00 kn"}},{"$f":"ProdajaOžujak[Dobit/gubitak\nod prodaje]+ProdajaOžujak[Dobit/gubitak\nod isporuke]","v":{"v":0,"d":"0.00 kn"}}]
[null,null,"Ukupno",{"$f":"\"Prodani artikli: \"&SUBTOTAL(103,ProdajaOžujak[Opis\nartikla])","v":"Prodani artikli: 0"},{"$f":"SUBTOTAL(109,ProdajaOžujak[Nabavna\ncijena])","v":{"v":0,"d":"0.00 kn"}},{"$f":"SUBTOTAL(109,ProdajaOžujak[Prodajna cijena])","v":{"v":0,"d":"0.00 kn"}},{"$f":"SUBTOTAL(109,ProdajaOžujak[Online fees])","v":{"v":0,"d":"0.00 kn"}},{"$f":"SUBTOTAL(109,ProdajaOžujak[Naknade za\nPayPal])","v":{"v":0,"d":"0.00 kn"}},{"$f":"SUBTOTAL(109,ProdajaOžujak[Naknade za\nkreditnu karticu])","v":{"v":0,"d":"0.00 kn"}},{"$f":"SUBTOTAL(109,ProdajaOžujak[Naplata\nisporuke])","v":{"v":0,"d":"0.00 kn"}},{"$f":"SUBTOTAL(109,ProdajaOžujak[Naknade za\nisporuku])","v":{"v":0,"d":"0.00 kn"}},{"$f":"SUBTOTAL(109,ProdajaOžujak[Dobit/gubitak\nod prodaje])","v":{"v":0,"d":"0.00 kn"}},{"$f":"SUBTOTAL(109,ProdajaOžujak[Dobit/gubitak\nod isporuke])","v":{"v":0,"d":"0.00 kn"}},{"$f":"SUBTOTAL(109,ProdajaOžujak[Ukupna\ndobit/gubitak])","v":{"v":0,"d":"0.00 kn"}}]
["Trend dobiti/gubitka"]

{"sheet":"Travanj","index":3,"n_rows":9,"n_cols":14,"rows_kept":9,"merged":[[3,0,4,0],[6,0,7,0]]}
["TRAVANJ"]
["Internetska prodaja",null,"ID\ndražbe","Opis\nartikla","Nabavna\ncijena","Prodajna cijena","Online fees","Naknade za\nPayPal","Naknade za\nkreditnu karticu","Naplata\nisporuke","Naknade za\nisporuku","Dobit/gubitak\nod prodaje","Dobit/gubitak\nod isporuke","Ukupna\ndobit/gubitak"]
["Godina",{"$nulls":11},{"$f":"ProdajaTravanj[Naplata\nisporuke]-ProdajaTravanj[Naknade za\nisporuku]","v":{"v":0,"d":"0.00 kn"}},{"$f":"ProdajaTravanj[Dobit/gubitak\nod prodaje]+ProdajaTravanj[Dobit/gubitak\nod isporuke]","v":{"v":0,"d":"0.00 kn"}}]
[{"$f":"GodišnjaProdaja","v":2012},{"$nulls":11},{"$f":"ProdajaTravanj[Naplata\nisporuke]-ProdajaTravanj[Naknade za\nisporuku]","v":{"v":0,"d":"0.00 kn"}},{"$f":"ProdajaTravanj[Dobit/gubitak\nod prodaje]+ProdajaTravanj[Dobit/gubitak\nod isporuke]","v":{"v":0,"d":"0.00 kn"}}]
[{"$nulls":12},{"$f":"ProdajaTravanj[Naplata\nisporuke]-ProdajaTravanj[Naknade za\nisporuku]","v":{"v":0,"d":"0.00 kn"}},{"$f":"ProdajaTravanj[Dobit/gubitak\nod prodaje]+ProdajaTravanj[Dobit/gubitak\nod isporuke]","v":{"v":0,"d":"0.00 kn"}}]
["Ukupna dobit/gubitak",{"$nulls":11},{"$f":"ProdajaTravanj[Naplata\nisporuke]-ProdajaTravanj[Naknade za\nisporuku]","v":{"v":0,"d":"0.00 kn"}},{"$f":"ProdajaTravanj[Dobit/gubitak\nod prodaje]+ProdajaTravanj[Dobit/gubitak\nod isporuke]","v":{"v":0,"d":"0.00 kn"}}]
[{"$f":"ProdajaTravanj[[#Totals],[Ukupna\ndobit/gubitak]]","v":{"v":0,"d":"0.00 kn"}},{"$nulls":11},{"$f":"ProdajaTravanj[Naplata\nisporuke]-ProdajaTravanj[Naknade za\nisporuku]","v":{"v":0,"d":"0.00 kn"}},{"$f":"ProdajaTravanj[Dobit/gubitak\nod prodaje]+ProdajaTravanj[Dobit/gubitak\nod isporuke]","v":{"v":0,"d":"0.00 kn"}}]
[null,null,"Ukupno",{"$f":"\"Prodani artikli: \"&SUBTOTAL(103,ProdajaTravanj[Opis\nartikla])","v":"Prodani artikli: 0"},{"$f":"SUBTOTAL(109,ProdajaTravanj[Nabavna\ncijena])","v":{"v":0,"d":"0.00 kn"}},{"$f":"SUBTOTAL(109,ProdajaTravanj[Prodajna cijena])","v":{"v":0,"d":"0.00 kn"}},{"$f":"SUBTOTAL(109,ProdajaTravanj[Online fees])","v":{"v":0,"d":"0.00 kn"}},{"$f":"SUBTOTAL(109,ProdajaTravanj[Naknade za\nPayPal])","v":{"v":0,"d":"0.00 kn"}},{"$f":"SUBTOTAL(109,ProdajaTravanj[Naknade za\nkreditnu karticu])","v":{"v":0,"d":"0.00 kn"}},{"$f":"SUBTOTAL(109,ProdajaTravanj[Naplata\nisporuke])","v":{"v":0,"d":"0.00 kn"}},{"$f":"SUBTOTAL(109,ProdajaTravanj[Naknade za\nisporuku])","v":{"v":0,"d":"0.00 kn"}},{"$f":"SUBTOTAL(109,ProdajaTravanj[Dobit/gubitak\nod prodaje])","v":{"v":0,"d":"0.00 kn"}},{"$f":"SUBTOTAL(109,ProdajaTravanj[Dobit/gubitak\nod isporuke])","v":{"v":0,"d":"0.00 kn"}},{"$f":"SUBTOTAL(109,ProdajaTravanj[Ukupna\ndobit/gubitak])","v":{"v":0,"d":"0.00 kn"}}]
["Trend dobiti/gubitka"]

{"sheet":"Svibanj","index":4,"n_rows":9,"n_cols":14,"rows_kept":9,"merged":[[3,0,4,0],[6,0,7,0]]}
["SVIBANJ"]
["Internetska prodaja",null,"ID\ndražbe","Opis\nartikla","Nabavna\ncijena","Prodajna cijena","Online fees","Naknade za\nPayPal","Naknade za\nkreditnu karticu","Naplata\nisporuke","Naknade za\nisporuku","Dobit/gubitak\nod prodaje","Dobit/gubitak\nod isporuke","Ukupna\ndobit/gubitak"]
["Godina",{"$nulls":11},{"$f":"ProdajaSvibanj[Naplata\nisporuke]-ProdajaSvibanj[Naknade za\nisporuku]","v":{"v":0,"d":"0.00 kn"}},{"$f":"ProdajaSvibanj[Dobit/gubitak\nod prodaje]+ProdajaSvibanj[Dobit/gubitak\nod isporuke]","v":{"v":0,"d":"0.00 kn"}}]
[{"$f":"GodišnjaProdaja","v":2012},{"$nulls":11},{"$f":"ProdajaSvibanj[Naplata\nisporuke]-ProdajaSvibanj[Naknade za\nisporuku]","v":{"v":0,"d":"0.00 kn"}},{"$f":"ProdajaSvibanj[Dobit/gubitak\nod prodaje]+ProdajaSvibanj[Dobit/gubitak\nod isporuke]","v":{"v":0,"d":"0.00 kn"}}]
[{"$nulls":12},{"$f":"ProdajaSvibanj[Naplata\nisporuke]-ProdajaSvibanj[Naknade za\nisporuku]","v":{"v":0,"d":"0.00 kn"}},{"$f":"ProdajaSvibanj[Dobit/gubitak\nod prodaje]+ProdajaSvibanj[Dobit/gubitak\nod isporuke]","v":{"v":0,"d":"0.00 kn"}}]
["Ukupna dobit/gubitak",{"$nulls":11},{"$f":"ProdajaSvibanj[Naplata\nisporuke]-ProdajaSvibanj[Naknade za\nisporuku]","v":{"v":0,"d":"0.00 kn"}},{"$f":"ProdajaSvibanj[Dobit/gubitak\nod prodaje]+ProdajaSvibanj[Dobit/gubitak\nod isporuke]","v":{"v":0,"d":"0.00 kn"}}]
[{"$f":"ProdajaSvibanj[[#Totals],[Ukupna\ndobit/gubitak]]","v":{"v":0,"d":"0.00 kn"}},{"$nulls":11},{"$f":"ProdajaSvibanj[Naplata\nisporuke]-ProdajaSvibanj[Naknade za\nisporuku]","v":{"v":0,"d":"0.00 kn"}},{"$f":"ProdajaSvibanj[Dobit/gubitak\nod prodaje]+ProdajaSvibanj[Dobit/gubitak\nod isporuke]","v":{"v":0,"d":"0.00 kn"}}]
[null,null,"Ukupno",{"$f":"\"Prodani artikli: \"&SUBTOTAL(103,ProdajaSvibanj[Opis\nartikla])","v":"Prodani artikli: 0"},{"$f":"SUBTOTAL(109,ProdajaSvibanj[Nabavna\ncijena])","v":{"v":0,"d":"0.00 kn"}},{"$f":"SUBTOTAL(109,ProdajaSvibanj[Prodajna cijena])","v":{"v":0,"d":"0.00 kn"}},{"$f":"SUBTOTAL(109,ProdajaSvibanj[Online fees])","v":{"v":0,"d":"0.00 kn"}},{"$f":"SUBTOTAL(109,ProdajaSvibanj[Naknade za\nPayPal])","v":{"v":0,"d":"0.00 kn"}},{"$f":"SUBTOTAL(109,ProdajaSvibanj[Naknade za\nkreditnu karticu])","v":{"v":0,"d":"0.00 kn"}},{"$f":"SUBTOTAL(109,ProdajaSvibanj[Naplata\nisporuke])","v":{"v":0,"d":"0.00 kn"}},{"$f":"SUBTOTAL(109,ProdajaSvibanj[Naknade za\nisporuku])","v":{"v":0,"d":"0.00 kn"}},{"$f":"SUBTOTAL(109,ProdajaSvibanj[Dobit/gubitak\nod prodaje])","v":{"v":0,"d":"0.00 kn"}},{"$f":"SUBTOTAL(109,ProdajaSvibanj[Dobit/gubitak\nod isporuke])","v":{"v":0,"d":"0.00 kn"}},{"$f":"SUBTOTAL(109,ProdajaSvibanj[Ukupna\ndobit/gubitak])","v":{"v":0,"d":"0.00 kn"}}]
["Trend dobiti/gubitka"]

{"sheet":"Lipanj","index":5,"n_rows":9,"n_cols":14,"rows_kept":9,"merged":[[3,0,4,0],[6,0,7,0]]}
["LIPANJ"]
["Internetska prodaja",null,"ID\ndražbe","Opis\nartikla","Nabavna\ncijena","Prodajna cijena","Online fees","Naknade za\nPayPal","Naknade za\nkreditnu karticu","Naplata\nisporuke","Naknade za\nisporuku","Dobit/gubitak\nod prodaje","Dobit/gubitak\nod isporuke","Ukupna\ndobit/gubitak"]
["Godina",{"$nulls":11},{"$f":"ProdajaLipanj[Naplata\nisporuke]-ProdajaLipanj[Naknade za\nisporuku]","v":{"v":0,"d":"0.00 kn"}},{"$f":"ProdajaLipanj[Dobit/gubitak\nod prodaje]+ProdajaLipanj[Dobit/gubitak\nod isporuke]","v":{"v":0,"d":"0.00 kn"}}]
[{"$f":"GodišnjaProdaja","v":2012},{"$nulls":11},{"$f":"ProdajaLipanj[Naplata\nisporuke]-ProdajaLipanj[Naknade za\nisporuku]","v":{"v":0,"d":"0.00 kn"}},{"$f":"ProdajaLipanj[Dobit/gubitak\nod prodaje]+ProdajaLipanj[Dobit/gubitak\nod isporuke]","v":{"v":0,"d":"0.00 kn"}}]
[{"$nulls":12},{"$f":"ProdajaLipanj[Naplata\nisporuke]-ProdajaLipanj[Naknade za\nisporuku]","v":{"v":0,"d":"0.00 kn"}},{"$f":"ProdajaLipanj[Dobit/gubitak\nod prodaje]+ProdajaLipanj[Dobit/gubitak\nod isporuke]","v":{"v":0,"d":"0.00 kn"}}]
["Ukupna dobit/gubitak",{"$nulls":11},{"$f":"ProdajaLipanj[Naplata\nisporuke]-ProdajaLipanj[Naknade za\nisporuku]","v":{"v":0,"d":"0.00 kn"}},{"$f":"ProdajaLipanj[Dobit/gubitak\nod prodaje]+ProdajaLipanj[Dobit/gubitak\nod isporuke]","v":{"v":0,"d":"0.00 kn"}}]
[{"$f":"ProdajaLipanj[[#Totals],[Ukupna\ndobit/gubitak]]","v":{"v":0,"d":"0.00 kn"}},{"$nulls":11},{"$f":"ProdajaLipanj[Naplata\nisporuke]-ProdajaLipanj[Naknade za\nisporuku]","v":{"v":0,"d":"0.00 kn"}},{"$f":"ProdajaLipanj[Dobit/gubitak\nod prodaje]+ProdajaLipanj[Dobit/gubitak\nod isporuke]","v":{"v":0,"d":"0.00 kn"}}]
[null,null,"Ukupno",{"$f":"\"Prodani artikli: \"&SUBTOTAL(103,ProdajaLipanj[Opis\nartikla])","v":"Prodani artikli: 0"},{"$f":"SUBTOTAL(109,ProdajaLipanj[Nabavna\ncijena])","v":{"v":0,"d":"0.00 kn"}},{"$f":"SUBTOTAL(109,ProdajaLipanj[Prodajna cijena])","v":{"v":0,"d":"0.00 kn"}},{"$f":"SUBTOTAL(109,ProdajaLipanj[Online fees])","v":{"v":0,"d":"0.00 kn"}},{"$f":"SUBTOTAL(109,ProdajaLipanj[Naknade za\nPayPal])","v":{"v":0,"d":"0.00 kn"}},{"$f":"SUBTOTAL(109,ProdajaLipanj[Naknade za\nkreditnu karticu])","v":{"v":0,"d":"0.00 kn"}},{"$f":"SUBTOTAL(109,ProdajaLipanj[Naplata\nisporuke])","v":{"v":0,"d":"0.00 kn"}},{"$f":"SUBTOTAL(109,ProdajaLipanj[Naknade za\nisporuku])","v":{"v":0,"d":"0.00 kn"}},{"$f":"SUBTOTAL(109,ProdajaLipanj[Dobit/gubitak\nod prodaje])","v":{"v":0,"d":"0.00 kn"}},{"$f":"SUBTOTAL(109,ProdajaLipanj[Dobit/gubitak\nod isporuke])","v":{"v":0,"d":"0.00 kn"}},{"$f":"SUBTOTAL(109,ProdajaLipanj[Ukupna\ndobit/gubitak])","v":{"v":0,"d":"0.00 kn"}}]
["Trend dobiti/gubitka"]

{"sheet":"Srpanj","index":6,"n_rows":9,"n_cols":14,"rows_kept":9,"merged":[[3,0,4,0],[6,0,7,0]]}
["SRPANJ"]
["Internetska prodaja",null,"ID\ndražbe","Opis\nartikla","Nabavna\ncijena","Prodajna cijena","Online fees","Naknade za\nPayPal","Naknade za\nkreditnu karticu","Naplata\nisporuke","Naknade za\nisporuku","Dobit/gubitak\nod prodaje","Dobit/gubitak\nod isporuke","Ukupna\ndobit/gubitak"]
["Godina",{"$nulls":11},{"$f":"ProdajaSrpanj[Naplata\nisporuke]-ProdajaSrpanj[Naknade za\nisporuku]","v":{"v":0,"d":"0.00 kn"}},{"$f":"ProdajaSrpanj[Dobit/gubitak\nod prodaje]+ProdajaSrpanj[Dobit/gubitak\nod isporuke]","v":{"v":0,"d":"0.00 kn"}}]
[{"$f":"GodišnjaProdaja","v":2012},{"$nulls":11},{"$f":"ProdajaSrpanj[Naplata\nisporuke]-ProdajaSrpanj[Naknade za\nisporuku]","v":{"v":0,"d":"0.00 kn"}},{"$f":"ProdajaSrpanj[Dobit/gubitak\nod prodaje]+ProdajaSrpanj[Dobit/gubitak\nod isporuke]","v":{"v":0,"d":"0.00 kn"}}]
[{"$nulls":12},{"$f":"ProdajaSrpanj[Naplata\nisporuke]-ProdajaSrpanj[Naknade za\nisporuku]","v":{"v":0,"d":"0.00 kn"}},{"$f":"ProdajaSrpanj[Dobit/gubitak\nod prodaje]+ProdajaSrpanj[Dobit/gubitak\nod isporuke]","v":{"v":0,"d":"0.00 kn"}}]
["Ukupna dobit/gubitak",{"$nulls":11},{"$f":"ProdajaSrpanj[Naplata\nisporuke]-ProdajaSrpanj[Naknade za\nisporuku]","v":{"v":0,"d":"0.00 kn"}},{"$f":"ProdajaSrpanj[Dobit/gubitak\nod prodaje]+ProdajaSrpanj[Dobit/gubitak\nod isporuke]","v":{"v":0,"d":"0.00 kn"}}]
[{"$f":"ProdajaSrpanj[[#Totals],[Ukupna\ndobit/gubitak]]","v":{"v":0,"d":"0.00 kn"}},{"$nulls":11},{"$f":"ProdajaSrpanj[Naplata\nisporuke]-ProdajaSrpanj[Naknade za\nisporuku]","v":{"v":0,"d":"0.00 kn"}},{"$f":"ProdajaSrpanj[Dobit/gubitak\nod prodaje]+ProdajaSrpanj[Dobit/gubitak\nod isporuke]","v":{"v":0,"d":"0.00 kn"}}]
[null,null,"Ukupno",{"$f":"\"Prodani artikli: \"&SUBTOTAL(103,ProdajaSrpanj[Opis\nartikla])","v":"Prodani artikli: 0"},{"$f":"SUBTOTAL(109,ProdajaSrpanj[Nabavna\ncijena])","v":{"v":0,"d":"0.00 kn"}},{"$f":"SUBTOTAL(109,ProdajaSrpanj[Prodajna cijena])","v":{"v":0,"d":"0.00 kn"}},{"$f":"SUBTOTAL(109,ProdajaSrpanj[Online fees])","v":{"v":0,"d":"0.00 kn"}},{"$f":"SUBTOTAL(109,ProdajaSrpanj[Naknade za\nPayPal])","v":{"v":0,"d":"0.00 kn"}},{"$f":"SUBTOTAL(109,ProdajaSrpanj[Naknade za\nkreditnu karticu])","v":{"v":0,"d":"0.00 kn"}},{"$f":"SUBTOTAL(109,ProdajaSrpanj[Naplata\nisporuke])","v":{"v":0,"d":"0.00 kn"}},{"$f":"SUBTOTAL(109,ProdajaSrpanj[Naknade za\nisporuku])","v":{"v":0,"d":"0.00 kn"}},{"$f":"SUBTOTAL(109,ProdajaSrpanj[Dobit/gubitak\nod prodaje])","v":{"v":0,"d":"0.00 kn"}},{"$f":"SUBTOTAL(109,ProdajaSrpanj[Dobit/gubitak\nod isporuke])","v":{"v":0,"d":"0.00 kn"}},{"$f":"SUBTOTAL(109,ProdajaSrpanj[Ukupna\ndobit/gubitak])","v":{"v":0,"d":"0.00 kn"}}]
["Trend dobiti/gubitka"]

{"sheet":"Kolovoz","index":7,"n_rows":9,"n_cols":14,"rows_kept":9,"merged":[[3,0,4,0],[6,0,7,0]]}
["KOLOVOZ"]
["Internetska prodaja",null,"ID\ndražbe","Opis\nartikla","Nabavna\ncijena","Prodajna cijena","Online fees","Naknade za\nPayPal","Naknade za\nkreditnu karticu","Naplata\nisporuke","Naknade za\nisporuku","Dobit/gubitak\nod prodaje","Dobit/gubitak\nod isporuke","Ukupna\ndobit/gubitak"]
["Godina",{"$nulls":11},{"$f":"ProdajaKolovoz[Naplata\nisporuke]-ProdajaKolovoz[Naknade za\nisporuku]","v":{"v":0,"d":"0.00 kn"}},{"$f":"ProdajaKolovoz[Dobit/gubitak\nod prodaje]+ProdajaKolovoz[Dobit/gubitak\nod isporuke]","v":{"v":0,"d":"0.00 kn"}}]
[{"$f":"GodišnjaProdaja","v":2012},{"$nulls":11},{"$f":"ProdajaKolovoz[Naplata\nisporuke]-ProdajaKolovoz[Naknade za\nisporuku]","v":{"v":0,"d":"0.00 kn"}},{"$f":"ProdajaKolovoz[Dobit/gubitak\nod prodaje]+ProdajaKolovoz[Dobit/gubitak\nod isporuke]","v":{"v":0,"d":"0.00 kn"}}]
[{"$nulls":12},{"$f":"ProdajaKolovoz[Naplata\nisporuke]-ProdajaKolovoz[Naknade za\nisporuku]","v":{"v":0,"d":"0.00 kn"}},{"$f":"ProdajaKolovoz[Dobit/gubitak\nod prodaje]+ProdajaKolovoz[Dobit/gubitak\nod isporuke]","v":{"v":0,"d":"0.00 kn"}}]
["Ukupna dobit/gubitak",{"$nulls":11},{"$f":"ProdajaKolovoz[Naplata\nisporuke]-ProdajaKolovoz[Naknade za\nisporuku]","v":{"v":0,"d":"0.00 kn"}},{"$f":"ProdajaKolovoz[Dobit/gubitak\nod prodaje]+ProdajaKolovoz[Dobit/gubitak\nod isporuke]","v":{"v":0,"d":"0.00 kn"}}]
[{"$f":"ProdajaKolovoz[[#Totals],[Ukupna\ndobit/gubitak]]","v":{"v":0,"d":"0.00 kn"}},{"$nulls":11},{"$f":"ProdajaKolovoz[Naplata\nisporuke]-ProdajaKolovoz[Naknade za\nisporuku]","v":{"v":0,"d":"0.00 kn"}},{"$f":"ProdajaKolovoz[Dobit/gubitak\nod prodaje]+ProdajaKolovoz[Dobit/gubitak\nod isporuke]","v":{"v":0,"d":"0.00 kn"}}]
[null,null,"Ukupno",{"$f":"\"Prodani artikli: \"&SUBTOTAL(103,ProdajaKolovoz[Opis\nartikla])","v":"Prodani artikli: 0"},{"$f":"SUBTOTAL(109,ProdajaKolovoz[Nabavna\ncijena])","v":{"v":0,"d":"0.00 kn"}},{"$f":"SUBTOTAL(109,ProdajaKolovoz[Prodajna cijena])","v":{"v":0,"d":"0.00 kn"}},{"$f":"SUBTOTAL(109,ProdajaKolovoz[Online fees])","v":{"v":0,"d":"0.00 kn"}},{"$f":"SUBTOTAL(109,ProdajaKolovoz[Naknade za\nPayPal])","v":{"v":0,"d":"0.00 kn"}},{"$f":"SUBTOTAL(109,ProdajaKolovoz[Naknade za\nkreditnu karticu])","v":{"v":0,"d":"0.00 kn"}},{"$f":"SUBTOTAL(109,ProdajaKolovoz[Naplata\nisporuke])","v":{"v":0,"d":"0.00 kn"}},{"$f":"SUBTOTAL(109,ProdajaKolovoz[Naknade za\nisporuku])","v":{"v":0,"d":"0.00 kn"}},{"$f":"SUBTOTAL(109,ProdajaKolovoz[Dobit/gubitak\nod prodaje])","v":{"v":0,"d":"0.00 kn"}},{"$f":"SUBTOTAL(109,ProdajaKolovoz[Dobit/gubitak\nod isporuke])","v":{"v":0,"d":"0.00 kn"}},{"$f":"SUBTOTAL(109,ProdajaKolovoz[Ukupna\ndobit/gubitak])","v":{"v":0,"d":"0.00 kn"}}]
["Trend dobiti/gubitka"]

{"sheet":"Rujan","index":8,"n_rows":9,"n_cols":14,"rows_kept":9,"merged":[[3,0,4,0],[6,0,7,0]]}
["RUJAN"]
["Internetska prodaja",null,"ID\ndražbe","Opis\nartikla","Nabavna\ncijena","Prodajna cijena","Online fees","Naknade za\nPayPal","Naknade za\nkreditnu karticu","Naplata\nisporuke","Naknade za\nisporuku","Dobit/gubitak\nod prodaje","Dobit/gubitak\nod isporuke","Ukupna\ndobit/gubitak"]
["Godina",{"$nulls":11},{"$f":"ProdajaRujan[Naplata\nisporuke]-ProdajaRujan[Naknade za\nisporuku]","v":{"v":0,"d":"0.00 kn"}},{"$f":"ProdajaRujan[Dobit/gubitak\nod prodaje]+ProdajaRujan[Dobit/gubitak\nod isporuke]","v":{"v":0,"d":"0.00 kn"}}]
[{"$f":"GodišnjaProdaja","v":2012},{"$nulls":11},{"$f":"ProdajaRujan[Naplata\nisporuke]-ProdajaRujan[Naknade za\nisporuku]","v":{"v":0,"d":"0.00 kn"}},{"$f":"ProdajaRujan[Dobit/gubitak\nod prodaje]+ProdajaRujan[Dobit/gubitak\nod isporuke]","v":{"v":0,"d":"0.00 kn"}}]
[{"$nulls":12},{"$f":"ProdajaRujan[Naplata\nisporuke]-ProdajaRujan[Naknade za\nisporuku]","v":{"v":0,"d":"0.00 kn"}},{"$f":"ProdajaRujan[Dobit/gubitak\nod prodaje]+ProdajaRujan[Dobit/gubitak\nod isporuke]","v":{"v":0,"d":"0.00 kn"}}]
["Ukupna dobit/gubitak",{"$nulls":11},{"$f":"ProdajaRujan[Naplata\nisporuke]-ProdajaRujan[Naknade za\nisporuku]","v":{"v":0,"d":"0.00 kn"}},{"$f":"ProdajaRujan[Dobit/gubitak\nod prodaje]+ProdajaRujan[Dobit/gubitak\nod isporuke]","v":{"v":0,"d":"0.00 kn"}}]
[{"$f":"ProdajaRujan[[#Totals],[Ukupna\ndobit/gubitak]]","v":{"v":0,"d":"0.00 kn"}},{"$nulls":11},{"$f":"ProdajaRujan[Naplata\nisporuke]-ProdajaRujan[Naknade za\nisporuku]","v":{"v":0,"d":"0.00 kn"}},{"$f":"ProdajaRujan[Dobit/gubitak\nod prodaje]+ProdajaRujan[Dobit/gubitak\nod isporuke]","v":{"v":0,"d":"0.00 kn"}}]
[null,null,"Ukupno",{"$f":"\"Prodani artikli: \"&SUBTOTAL(103,ProdajaRujan[Opis\nartikla])","v":"Prodani artikli: 0"},{"$f":"SUBTOTAL(109,ProdajaRujan[Nabavna\ncijena])","v":{"v":0,"d":"0.00 kn"}},{"$f":"SUBTOTAL(109,ProdajaRujan[Prodajna cijena])","v":{"v":0,"d":"0.00 kn"}},{"$f":"SUBTOTAL(109,ProdajaRujan[Online fees])","v":{"v":0,"d":"0.00 kn"}},{"$f":"SUBTOTAL(109,ProdajaRujan[Naknade za\nPayPal])","v":{"v":0,"d":"0.00 kn"}},{"$f":"SUBTOTAL(109,ProdajaRujan[Naknade za\nkreditnu karticu])","v":{"v":0,"d":"0.00 kn"}},{"$f":"SUBTOTAL(109,ProdajaRujan[Naplata\nisporuke])","v":{"v":0,"d":"0.00 kn"}},{"$f":"SUBTOTAL(109,ProdajaRujan[Naknade za\nisporuku])","v":{"v":0,"d":"0.00 kn"}},{"$f":"SUBTOTAL(109,ProdajaRujan[Dobit/gubitak\nod prodaje])","v":{"v":0,"d":"0.00 kn"}},{"$f":"SUBTOTAL(109,ProdajaRujan[Dobit/gubitak\nod isporuke])","v":{"v":0,"d":"0.00 kn"}},{"$f":"SUBTOTAL(109,ProdajaRujan[Ukupna\ndobit/gubitak])","v":{"v":0,"d":"0.00 kn"}}]
["Trend dobiti/gubitka"]

{"sheet":"Listopad","index":9,"n_rows":9,"n_cols":14,"rows_kept":9,"merged":[[3,0,4,0],[6,0,7,0]]}
["LISTOPAD"]
["Internetska prodaja",null,"ID\ndražbe","Opis\nartikla","Nabavna\ncijena","Prodajna cijena","Online fees","Naknade za\nPayPal","Naknade za\nkreditnu karticu","Naplata\nisporuke","Naknade za\nisporuku","Dobit/gubitak\nod prodaje","Dobit/gubitak\nod isporuke","Ukupna\ndobit/gubitak"]
["Godina",{"$nulls":11},{"$f":"ProdajaListopad[Naplata\nisporuke]-ProdajaListopad[Naknade za\nisporuku]","v":{"v":0,"d":"0.00 kn"}},{"$f":"ProdajaListopad[Dobit/gubitak\nod prodaje]+ProdajaListopad[Dobit/gubitak\nod isporuke]","v":{"v":0,"d":"0.00 kn"}}]
[{"$f":"GodišnjaProdaja","v":2012},{"$nulls":11},{"$f":"ProdajaListopad[Naplata\nisporuke]-ProdajaListopad[Naknade za\nisporuku]","v":{"v":0,"d":"0.00 kn"}},{"$f":"ProdajaListopad[Dobit/gubitak\nod prodaje]+ProdajaListopad[Dobit/gubitak\nod isporuke]","v":{"v":0,"d":"0.00 kn"}}]
[{"$nulls":12},{"$f":"ProdajaListopad[Naplata\nisporuke]-ProdajaListopad[Naknade za\nisporuku]","v":{"v":0,"d":"0.00 kn"}},{"$f":"ProdajaListopad[Dobit/gubitak\nod prodaje]+ProdajaListopad[Dobit/gubitak\nod isporuke]","v":{"v":0,"d":"0.00 kn"}}]
["Ukupna dobit/gubitak",{"$nulls":11},{"$f":"ProdajaListopad[Naplata\nisporuke]-ProdajaListopad[Naknade za\nisporuku]","v":{"v":0,"d":"0.00 kn"}},{"$f":"ProdajaListopad[Dobit/gubitak\nod prodaje]+ProdajaListopad[Dobit/gubitak\nod isporuke]","v":{"v":0,"d":"0.00 kn"}}]
[{"$f":"ProdajaListopad[[#Totals],[Ukupna\ndobit/gubitak]]","v":{"v":0,"d":"0.00 kn"}},{"$nulls":11},{"$f":"ProdajaListopad[Naplata\nisporuke]-ProdajaListopad[Naknade za\nisporuku]","v":{"v":0,"d":"0.00 kn"}},{"$f":"ProdajaListopad[Dobit/gubitak\nod prodaje]+ProdajaListopad[Dobit/gubitak\nod isporuke]","v":{"v":0,"d":"0.00 kn"}}]
[null,null,"Ukupno",{"$f":"\"Prodani artikli: \"&SUBTOTAL(103,ProdajaListopad[Opis\nartikla])","v":"Prodani artikli: 0"},{"$f":"SUBTOTAL(109,ProdajaListopad[Nabavna\ncijena])","v":{"v":0,"d":"0.00 kn"}},{"$f":"SUBTOTAL(109,ProdajaListopad[Prodajna cijena])","v":{"v":0,"d":"0.00 kn"}},{"$f":"SUBTOTAL(109,ProdajaListopad[Online fees])","v":{"v":0,"d":"0.00 kn"}},{"$f":"SUBTOTAL(109,ProdajaListopad[Naknade za\nPayPal])","v":{"v":0,"d":"0.00 kn"}},{"$f":"SUBTOTAL(109,ProdajaListopad[Naknade za\nkreditnu karticu])","v":{"v":0,"d":"0.00 kn"}},{"$f":"SUBTOTAL(109,ProdajaListopad[Naplata\nisporuke])","v":{"v":0,"d":"0.00 kn"}},{"$f":"SUBTOTAL(109,ProdajaListopad[Naknade za\nisporuku])","v":{"v":0,"d":"0.00 kn"}},{"$f":"SUBTOTAL(109,ProdajaListopad[Dobit/gubitak\nod prodaje])","v":{"v":0,"d":"0.00 kn"}},{"$f":"SUBTOTAL(109,ProdajaListopad[Dobit/gubitak\nod isporuke])","v":{"v":0,"d":"0.00 kn"}},{"$f":"SUBTOTAL(109,ProdajaListopad[Ukupna\ndobit/gubitak])","v":{"v":0,"d":"0.00 kn"}}]
["Trend dobiti/gubitka"]

{"sheet":"Studeni","index":10,"n_rows":9,"n_cols":14,"rows_kept":9,"merged":[[3,0,4,0],[6,0,7,0]]}
["STUDENI"]
["Internetska prodaja",null,"ID\ndražbe","Opis\nartikla","Nabavna\ncijena","Prodajna cijena","Online fees","Naknade za\nPayPal","Naknade za\nkreditnu karticu","Naplata\nisporuke","Naknade za\nisporuku","Dobit/gubitak\nod prodaje","Dobit/gubitak\nod isporuke","Ukupna\ndobit/gubitak"]
["Godina",{"$nulls":11},{"$f":"ProdajaStudeni[Naplata\nisporuke]-ProdajaStudeni[Naknade za\nisporuku]","v":{"v":0,"d":"0.00 kn"}},{"$f":"ProdajaStudeni[Dobit/gubitak\nod prodaje]+ProdajaStudeni[Dobit/gubitak\nod isporuke]","v":{"v":0,"d":"0.00 kn"}}]
[{"$f":"GodišnjaProdaja","v":2012},{"$nulls":11},{"$f":"ProdajaStudeni[Naplata\nisporuke]-ProdajaStudeni[Naknade za\nisporuku]","v":{"v":0,"d":"0.00 kn"}},{"$f":"ProdajaStudeni[Dobit/gubitak\nod prodaje]+ProdajaStudeni[Dobit/gubitak\nod isporuke]","v":{"v":0,"d":"0.00 kn"}}]
[{"$nulls":12},{"$f":"ProdajaStudeni[Naplata\nisporuke]-ProdajaStudeni[Naknade za\nisporuku]","v":{"v":0,"d":"0.00 kn"}},{"$f":"ProdajaStudeni[Dobit/gubitak\nod prodaje]+ProdajaStudeni[Dobit/gubitak\nod isporuke]","v":{"v":0,"d":"0.00 kn"}}]
["Ukupna dobit/gubitak",{"$nulls":11},{"$f":"ProdajaStudeni[Naplata\nisporuke]-ProdajaStudeni[Naknade za\nisporuku]","v":{"v":0,"d":"0.00 kn"}},{"$f":"ProdajaStudeni[Dobit/gubitak\nod prodaje]+ProdajaStudeni[Dobit/gubitak\nod isporuke]","v":{"v":0,"d":"0.00 kn"}}]
[{"$f":"ProdajaStudeni[[#Totals],[Ukupna\ndobit/gubitak]]","v":{"v":0,"d":"0.00 kn"}},{"$nulls":11},{"$f":"ProdajaStudeni[Naplata\nisporuke]-ProdajaStudeni[Naknade za\nisporuku]","v":{"v":0,"d":"0.00 kn"}},{"$f":"ProdajaStudeni[Dobit/gubitak\nod prodaje]+ProdajaStudeni[Dobit/gubitak\nod isporuke]","v":{"v":0,"d":"0.00 kn"}}]
[null,null,"Ukupno",{"$f":"\"Prodani artikli: \"&SUBTOTAL(103,ProdajaStudeni[Opis\nartikla])","v":"Prodani artikli: 0"},{"$f":"SUBTOTAL(109,ProdajaStudeni[Nabavna\ncijena])","v":{"v":0,"d":"0.00 kn"}},{"$f":"SUBTOTAL(109,ProdajaStudeni[Prodajna cijena])","v":{"v":0,"d":"0.00 kn"}},{"$f":"SUBTOTAL(109,ProdajaStudeni[Online fees])","v":{"v":0,"d":"0.00 kn"}},{"$f":"SUBTOTAL(109,ProdajaStudeni[Naknade za\nPayPal])","v":{"v":0,"d":"0.00 kn"}},{"$f":"SUBTOTAL(109,ProdajaStudeni[Naknade za\nkreditnu karticu])","v":{"v":0,"d":"0.00 kn"}},{"$f":"SUBTOTAL(109,ProdajaStudeni[Naplata\nisporuke])","v":{"v":0,"d":"0.00 kn"}},{"$f":"SUBTOTAL(109,ProdajaStudeni[Naknade za\nisporuku])","v":{"v":0,"d":"0.00 kn"}},{"$f":"SUBTOTAL(109,ProdajaStudeni[Dobit/gubitak\nod prodaje])","v":{"v":0,"d":"0.00 kn"}},{"$f":"SUBTOTAL(109,ProdajaStudeni[Dobit/gubitak\nod isporuke])","v":{"v":0,"d":"0.00 kn"}},{"$f":"SUBTOTAL(109,ProdajaStudeni[Ukupna\ndobit/gubitak])","v":{"v":0,"d":"0.00 kn"}}]
["Trend dobiti/gubitka"]

{"sheet":"Prosinac","index":11,"n_rows":9,"n_cols":14,"rows_kept":9,"merged":[[3,0,4,0],[6,0,7,0]]}
["PROSINAC"]
["Internetska prodaja",null,"ID\ndražbe","Opis\nartikla","Nabavna\ncijena","Prodajna cijena","Online fees","Naknade za\nPayPal","Naknade za\nkreditnu karticu","Naplata\nisporuke","Naknade za\nisporuku","Dobit/gubitak\nod prodaje","Dobit/gubitak\nod isporuke","Ukupna\ndobit/gubitak"]
["Godina",{"$nulls":11},{"$f":"ProdajaProsinac[Naplata\nisporuke]-ProdajaProsinac[Naknade za\nisporuku]","v":{"v":0,"d":"0.00 kn"}},{"$f":"ProdajaProsinac[Dobit/gubitak\nod prodaje]+ProdajaProsinac[Dobit/gubitak\nod isporuke]","v":{"v":0,"d":"0.00 kn"}}]
[{"$f":"GodišnjaProdaja","v":2012},{"$nulls":11},{"$f":"ProdajaProsinac[Naplata\nisporuke]-ProdajaProsinac[Naknade za\nisporuku]","v":{"v":0,"d":"0.00 kn"}},{"$f":"ProdajaProsinac[Dobit/gubitak\nod prodaje]+ProdajaProsinac[Dobit/gubitak\nod isporuke]","v":{"v":0,"d":"0.00 kn"}}]
[{"$nulls":12},{"$f":"ProdajaProsinac[Naplata\nisporuke]-ProdajaProsinac[Naknade za\nisporuku]","v":{"v":0,"d":"0.00 kn"}},{"$f":"ProdajaProsinac[Dobit/gubitak\nod prodaje]+ProdajaProsinac[Dobit/gubitak\nod isporuke]","v":{"v":0,"d":"0.00 kn"}}]
["Ukupna dobit/gubitak",{"$nulls":11},{"$f":"ProdajaProsinac[Naplata\nisporuke]-ProdajaProsinac[Naknade za\nisporuku]","v":{"v":0,"d":"0.00 kn"}},{"$f":"ProdajaProsinac[Dobit/gubitak\nod prodaje]+ProdajaProsinac[Dobit/gubitak\nod isporuke]","v":{"v":0,"d":"0.00 kn"}}]
[{"$f":"ProdajaProsinac[[#Totals],[Ukupna\ndobit/gubitak]]","v":{"v":0,"d":"0.00 kn"}},{"$nulls":11},{"$f":"ProdajaProsinac[Naplata\nisporuke]-ProdajaProsinac[Naknade za\nisporuku]","v":{"v":0,"d":"0.00 kn"}},{"$f":"ProdajaProsinac[Dobit/gubitak\nod prodaje]+ProdajaProsinac[Dobit/gubitak\nod isporuke]","v":{"v":0,"d":"0.00 kn"}}]
[null,null,"Ukupno",{"$f":"\"Prodani artikli: \"&SUBTOTAL(103,ProdajaProsinac[Opis\nartikla])","v":"Prodani artikli: 0"},{"$f":"SUBTOTAL(109,ProdajaProsinac[Nabavna\ncijena])","v":{"v":0,"d":"0.00 kn"}},{"$f":"SUBTOTAL(109,ProdajaProsinac[Prodajna cijena])","v":{"v":0,"d":"0.00 kn"}},{"$f":"SUBTOTAL(109,ProdajaProsinac[Online fees])","v":{"v":0,"d":"0.00 kn"}},{"$f":"SUBTOTAL(109,ProdajaProsinac[Naknade za\nPayPal])","v":{"v":0,"d":"0.00 kn"}},{"$f":"SUBTOTAL(109,ProdajaProsinac[Naknade za\nkreditnu karticu])","v":{"v":0,"d":"0.00 kn"}},{"$f":"SUBTOTAL(109,ProdajaProsinac[Naplata\nisporuke])","v":{"v":0,"d":"0.00 kn"}},{"$f":"SUBTOTAL(109,ProdajaProsinac[Naknade za\nisporuku])","v":{"v":0,"d":"0.00 kn"}},{"$f":"SUBTOTAL(109,ProdajaProsinac[Dobit/gubitak\nod prodaje])","v":{"v":0,"d":"0.00 kn"}},{"$f":"SUBTOTAL(109,ProdajaProsinac[Dobit/gubitak\nod isporuke])","v":{"v":0,"d":"0.00 kn"}},{"$f":"SUBTOTAL(109,ProdajaProsinac[Ukupna\ndobit/gubitak])","v":{"v":0,"d":"0.00 kn"}}]
["Trend dobiti/gubitka"]

{"sheet":"Sažetak dosadašnje godine","index":12,"n_rows":16,"n_cols":11,"rows_kept":16,"merged":[[3,0,4,0],[6,0,7,0]]}
["Ova godina do danas"]
["Sažetak",null,"Dobit/gubitak",{"$nulls":4},"Dobit/gubitak za dosadašnju godinu"]
["Godina",{"$nulls":6},"Mjesec","Dobit/gubitak od prodaje","Dobit/gubitak od isporuke","Ukupna\ndobit/gubitak"]
[{"$f":"GodišnjaProdaja","v":2012},{"$nulls":6},"Siječanj",{"$f":"ProdajaSiječanj[[#Totals],[Dobit/gubitak\nod prodaje]]","v":{"v":79.5,"d":"79.50 kn"}},{"$f":"ProdajaSiječanj[[#Totals],[Dobit/gubitak\nod isporuke]]","v":{"v":9.5,"d":"9.50 kn"}},{"$f":"IF(AND(SažetakTekućeGodine[[#This Row],[Dobit/gubitak od prodaje]]<>\"\",SažetakTekućeGodine[[#This Row],[Dobit/gubitak od isporuke]]<>\"\"),SažetakTekućeGodine[[#This Row],[Dobit/gubitak od prodaje]]+SažetakTekućeGodine[[#This Row],[Dobit/gubitak od isporuke]],\"\")","v":{"v":89,"d":"89.00 kn"}}]
[{"$nulls":7},"Veljača",{"$f":"ProdajaVeljača[[#Totals],[Dobit/gubitak\nod prodaje]]","v":{"v":212.3,"d":"212.30 kn"}},{"$f":"ProdajaVeljača[[#Totals],[Dobit/gubitak\nod isporuke]]","v":{"v":12.3,"d":"12.30 kn"}},{"$f":"IF(AND(SažetakTekućeGodine[[#This Row],[Dobit/gubitak od prodaje]]<>\"\",SažetakTekućeGodine[[#This Row],[Dobit/gubitak od isporuke]]<>\"\"),SažetakTekućeGodine[[#This Row],[Dobit/gubitak od prodaje]]+SažetakTekućeGodine[[#This Row],[Dobit/gubitak od isporuke]],\"\")","v":{"v":224.60000000000002,"d":"224.60 kn"}}]
["Trend mjesečne prodaje:",{"$nulls":6},"Ožujak",{"$f":"ProdajaOžujak[[#Totals],[Dobit/gubitak\nod prodaje]]","v":{"v":0,"d":"0.00 kn"}},{"$f":"ProdajaOžujak[[#Totals],[Dobit/gubitak\nod isporuke]]","v":{"v":0,"d":"0.00 kn"}},{"$f":"IF(AND(SažetakTekućeGodine[[#This Row],[Dobit/gubitak od prodaje]]<>\"\",SažetakTekućeGodine[[#This Row],[Dobit/gubitak od isporuke]]<>\"\"),SažetakTekućeGodine[[#This Row],[Dobit/gubitak od prodaje]]+SažetakTekućeGodine[[#This Row],[Dobit/gubitak od isporuke]],\"\")","v":{"v":0,"d":"0.00 kn"}}]
[{"$nulls":7},"Travanj",{"$f":"ProdajaTravanj[[#Totals],[Dobit/gubitak\nod prodaje]]","v":{"v":0,"d":"0.00 kn"}},{"$f":"ProdajaTravanj[[#Totals],[Dobit/gubitak\nod isporuke]]","v":{"v":0,"d":"0.00 kn"}},{"$f":"IF(AND(SažetakTekućeGodine[[#This Row],[Dobit/gubitak od prodaje]]<>\"\",SažetakTekućeGodine[[#This Row],[Dobit/gubitak od isporuke]]<>\"\"),SažetakTekućeGodine[[#This Row],[Dobit/gubitak od prodaje]]+SažetakTekućeGodine[[#This Row],[Dobit/gubitak od isporuke]],\"\")","v":{"v":0,"d":"0.00 kn"}}]
[{"$nulls":7},"Svibanj",{"$f":"ProdajaSvibanj[[#Totals],[Dobit/gubitak\nod prodaje]]","v":{"v":0,"d":"0.00 kn"}},{"$f":"ProdajaSvibanj[[#Totals],[Dobit/gubitak\nod isporuke]]","v":{"v":0,"d":"0.00 kn"}},{"$f":"IF(AND(SažetakTekućeGodine[[#This Row],[Dobit/gubitak od prodaje]]<>\"\",SažetakTekućeGodine[[#This Row],[Dobit/gubitak od isporuke]]<>\"\"),SažetakTekućeGodine[[#This Row],[Dobit/gubitak od prodaje]]+SažetakTekućeGodine[[#This Row],[Dobit/gubitak od isporuke]],\"\")","v":{"v":0,"d":"0.00 kn"}}]
[{"$nulls":7},"Lipanj",{"$f":"ProdajaLipanj[[#Totals],[Dobit/gubitak\nod prodaje]]","v":{"v":0,"d":"0.00 kn"}},{"$f":"ProdajaLipanj[[#Totals],[Dobit/gubitak\nod isporuke]]","v":{"v":0,"d":"0.00 kn"}},{"$f":"IF(AND(SažetakTekućeGodine[[#This Row],[Dobit/gubitak od prodaje]]<>\"\",SažetakTekućeGodine[[#This Row],[Dobit/gubitak od isporuke]]<>\"\"),SažetakTekućeGodine[[#This Row],[Dobit/gubitak od prodaje]]+SažetakTekućeGodine[[#This Row],[Dobit/gubitak od isporuke]],\"\")","v":{"v":0,"d":"0.00 kn"}}]
[{"$nulls":7},"Srpanj",{"$f":"ProdajaSrpanj[[#Totals],[Dobit/gubitak\nod prodaje]]","v":{"v":0,"d":"0.00 kn"}},{"$f":"ProdajaSrpanj[[#Totals],[Dobit/gubitak\nod isporuke]]","v":{"v":0,"d":"0.00 kn"}},{"$f":"IF(AND(SažetakTekućeGodine[[#This Row],[Dobit/gubitak od prodaje]]<>\"\",SažetakTekućeGodine[[#This Row],[Dobit/gubitak od isporuke]]<>\"\"),SažetakTekućeGodine[[#This Row],[Dobit/gubitak od prodaje]]+SažetakTekućeGodine[[#This Row],[Dobit/gubitak od isporuke]],\"\")","v":{"v":0,"d":"0.00 kn"}}]
[{"$nulls":7},"Kolovoz",{"$f":"ProdajaKolovoz[[#Totals],[Dobit/gubitak\nod prodaje]]","v":{"v":0,"d":"0.00 kn"}},{"$f":"ProdajaKolovoz[[#Totals],[Dobit/gubitak\nod isporuke]]","v":{"v":0,"d":"0.00 kn"}},{"$f":"IF(AND(SažetakTekućeGodine[[#This Row],[Dobit/gubitak od prodaje]]<>\"\",SažetakTekućeGodine[[#This Row],[Dobit/gubitak od isporuke]]<>\"\"),SažetakTekućeGodine[[#This Row],[Dobit/gubitak od prodaje]]+SažetakTekućeGodine[[#This Row],[Dobit/gubitak od isporuke]],\"\")","v":{"v":0,"d":"0.00 kn"}}]
[{"$nulls":7},"Rujan",{"$f":"ProdajaRujan[[#Totals],[Dobit/gubitak\nod prodaje]]","v":{"v":0,"d":"0.00 kn"}},{"$f":"ProdajaRujan[[#Totals],[Dobit/gubitak\nod isporuke]]","v":{"v":0,"d":"0.00 kn"}},{"$f":"IF(AND(SažetakTekućeGodine[[#This Row],[Dobit/gubitak od prodaje]]<>\"\",SažetakTekućeGodine[[#This Row],[Dobit/gubitak od isporuke]]<>\"\"),SažetakTekućeGodine[[#This Row],[Dobit/gubitak od prodaje]]+SažetakTekućeGodine[[#This Row],[Dobit/gubitak od isporuke]],\"\")","v":{"v":0,"d":"0.00 kn"}}]
[{"$nulls":7},"Listopad",{"$f":"ProdajaListopad[[#Totals],[Dobit/gubitak\nod prodaje]]","v":{"v":0,"d":"0.00 kn"}},{"$f":"ProdajaListopad[[#Totals],[Dobit/gubitak\nod isporuke]]","v":{"v":0,"d":"0.00 kn"}},{"$f":"IF(AND(SažetakTekućeGodine[[#This Row],[Dobit/gubitak od prodaje]]<>\"\",SažetakTekućeGodine[[#This Row],[Dobit/gubitak od isporuke]]<>\"\"),SažetakTekućeGodine[[#This Row],[Dobit/gubitak od prodaje]]+SažetakTekućeGodine[[#This Row],[Dobit/gubitak od isporuke]],\"\")","v":{"v":0,"d":"0.00 kn"}}]
[{"$nulls":7},"Studeni",{"$f":"ProdajaStudeni[[#Totals],[Dobit/gubitak\nod prodaje]]","v":{"v":0,"d":"0.00 kn"}},{"$f":"ProdajaStudeni[[#Totals],[Dobit/gubitak\nod isporuke]]","v":{"v":0,"d":"0.00 kn"}},{"$f":"IF(AND(SažetakTekućeGodine[[#This Row],[Dobit/gubitak od prodaje]]<>\"\",SažetakTekućeGodine[[#This Row],[Dobit/gubitak od isporuke]]<>\"\"),SažetakTekućeGodine[[#This Row],[Dobit/gubitak od prodaje]]+SažetakTekućeGodine[[#This Row],[Dobit/gubitak od isporuke]],\"\")","v":{"v":0,"d":"0.00 kn"}}]
[{"$nulls":7},"Prosinac",{"$f":"ProdajaProsinac[[#Totals],[Dobit/gubitak\nod prodaje]]","v":{"v":0,"d":"0.00 kn"}},{"$f":"ProdajaProsinac[[#Totals],[Dobit/gubitak\nod isporuke]]","v":{"v":0,"d":"0.00 kn"}},{"$f":"IF(AND(SažetakTekućeGodine[[#This Row],[Dobit/gubitak od prodaje]]<>\"\",SažetakTekućeGodine[[#This Row],[Dobit/gubitak od isporuke]]<>\"\"),SažetakTekućeGodine[[#This Row],[Dobit/gubitak od prodaje]]+SažetakTekućeGodine[[#This Row],[Dobit/gubitak od isporuke]],\"\")","v":{"v":0,"d":"0.00 kn"}}]
[{"$nulls":7},"Totals",{"$f":"SUBTOTAL(109,SažetakTekućeGodine[Dobit/gubitak od prodaje])","v":{"v":291.8,"d":"291.80 kn"}},{"$f":"SUBTOTAL(109,SažetakTekućeGodine[Dobit/gubitak od isporuke])","v":{"v":21.8,"d":"21.80 kn"}},{"$f":"SUBTOTAL(109,SažetakTekućeGodine[Ukupna\ndobit/gubitak])","v":{"v":313.6,"d":"313.60 kn"}}]